[Event "*** SCC Grand Prix: Titled Tuesday Blitz"]
[Site "Chess.com"]
[Date "2020.06.02"]
[Round "7"]
[White "Storchnoi"]
[Black "kasparicy"]
[Result "1/2-1/2"]
[WhiteElo "2037"]
[BlackElo "2203"]
[TimeControl "180+1"]
[EndTime "11:16:57 PDT"]
[Termination "Game drawn by agreement"]

1. d4 {[%clk 0:03:00.9]} 1... Nf6 {[%clk 0:02:58.4]} 2. c4 {[%clk 0:03:01]} 2...
g6 {[%clk 0:02:53.9]} 3. Nc3 {[%clk 0:03:00.9]} 3... d5 {[%clk 0:02:54]} 4. Nf3
{[%clk 0:03:00.3]} 4... Bg7 {[%clk 0:02:54.2]} 5. cxd5 {[%clk 0:03:00.6]} 5...
Nxd5 {[%clk 0:02:54.3]} 6. e4 {[%clk 0:03:01.3]} 6... Nxc3 {[%clk 0:02:54]} 7.
bxc3 {[%clk 0:03:02.2]} 7... c5 {[%clk 0:02:54.6]} 8. Rb1 {[%clk 0:03:02.2]}
8... O-O {[%clk 0:02:55.1]} 9. Be2 {[%clk 0:02:59.4]} 9... cxd4 {[%clk
0:02:55.6]} 10. cxd4 {[%clk 0:02:59.1]} 10... Qa5+ {[%clk 0:02:55.6]} 11. Qd2
{[%clk 0:02:58.9]} 11... Qxd2+ {[%clk 0:02:55]} 12. Bxd2 {[%clk 0:02:59.4]}
12... b6 {[%clk 0:02:54.3]} 13. O-O {[%clk 0:02:58.4]} 13... Bb7 {[%clk
0:02:54.4]} 14. Bd3 {[%clk 0:02:57.3]} 14... Nc6 {[%clk 0:02:53.1]} 15. Be3
{[%clk 0:02:56.5]} 15... Rac8 {[%clk 0:02:29.7]} 16. Rbc1 {[%clk 0:02:52]} 16...
Rfd8 {[%clk 0:02:28.9]} 17. d5 {[%clk 0:02:49.2]} 17... Na5 {[%clk 0:02:28.1]}
18. Bd4 {[%clk 0:02:43.1]} 18... Bxd4 {[%clk 0:02:25.9]} 19. Nxd4 {[%clk
0:02:42.5]} 19... e6 {[%clk 0:02:26.8]} 20. Rxc8 {[%clk 0:02:30]} 20... Bxc8
{[%clk 0:02:27.7]} 21. Nb5 {[%clk 0:02:17.3]} 21... exd5 {[%clk 0:02:23.4]} 22.
Nxa7 {[%clk 0:02:15.8]} 22... dxe4 {[%clk 0:02:19.6]} 23. Bxe4 {[%clk
0:02:15.2]} 23... Be6 {[%clk 0:02:10.6]} 24. a4 {[%clk 0:02:00.6]} 24... Rd2
{[%clk 0:01:59.1]} 25. Nc6 {[%clk 0:01:59]} 25... Nc4 {[%clk 0:01:48.9]} 26. Rc1
{[%clk 0:01:49.3]} 26... Nb2 {[%clk 0:01:46.2]} 27. a5 {[%clk 0:01:43.2]} 27...
bxa5 {[%clk 0:01:45.5]} 28. Nxa5 {[%clk 0:01:42.8]} 1/2-1/2

[Event "*** SCC Grand Prix: Titled Tuesday Blitz"]
[Site "Chess.com"]
[Date "2020.06.02"]
[Round "7"]
[White "szefru"]
[Black "albano87"]
[Result "1-0"]
[WhiteElo "2152"]
[BlackElo "2429"]
[TimeControl "180+1"]
[EndTime "11:17:03 PDT"]
[Termination "szefru won by checkmate"]

1. e4 {[%clk 0:02:57]} 1... g6 {[%clk 0:02:58.3]} 2. d4 {[%clk 0:02:56.8]} 2...
Bg7 {[%clk 0:02:58.2]} 3. Nc3 {[%clk 0:02:57.4]} 3... d6 {[%clk 0:02:57.9]} 4.
Be3 {[%clk 0:02:57.6]} 4... c6 {[%clk 0:02:56.7]} 5. Qd2 {[%clk 0:02:58.2]} 5...
b5 {[%clk 0:02:56.3]} 6. O-O-O {[%clk 0:02:57.7]} 6... a5 {[%clk 0:02:52.4]} 7.
Kb1 {[%clk 0:02:56.3]} 7... Nf6 {[%clk 0:02:45.4]} 8. f3 {[%clk 0:02:55.8]} 8...
b4 {[%clk 0:02:43]} 9. Nce2 {[%clk 0:02:55.4]} 9... O-O {[%clk 0:02:41.4]} 10.
g4 {[%clk 0:02:53.5]} 10... h5 {[%clk 0:02:28.2]} 11. gxh5 {[%clk 0:02:50.2]}
11... Nxh5 {[%clk 0:02:27.5]} 12. Ng3 {[%clk 0:02:49.1]} 12... Nf6 {[%clk
0:02:23.1]} 13. h4 {[%clk 0:02:49.3]} 13... Nh5 {[%clk 0:02:12.9]} 14. Nxh5
{[%clk 0:02:48.5]} 14... gxh5 {[%clk 0:02:12.2]} 15. Nh3 {[%clk 0:02:47.9]}
15... Bxh3 {[%clk 0:02:10.9]} 16. Bxh3 {[%clk 0:02:47.3]} 16... e6 {[%clk
0:02:03.6]} 17. Bh6 {[%clk 0:02:46.5]} 17... Kh7 {[%clk 0:01:52.2]} 18. Bxg7
{[%clk 0:02:45.5]} 18... Kxg7 {[%clk 0:01:51.4]} 19. Rdg1+ {[%clk 0:02:44.3]}
19... Kh7 {[%clk 0:01:46.1]} 20. Rg5 {[%clk 0:02:44.1]} 20... f5 {[%clk
0:01:05.4]} 21. Rxh5+ {[%clk 0:02:37.6]} 21... Kg7 {[%clk 0:01:04.7]} 22. Qh6+
{[%clk 0:02:09]} 22... Kf7 {[%clk 0:01:04.3]} 23. exf5 {[%clk 0:02:08.3]} 23...
Ke7 {[%clk 0:00:53.8]} 24. Qxe6# {[%clk 0:02:06.6]} 1-0

[Event "*** SCC Grand Prix: Titled Tuesday Blitz"]
[Site "Chess.com"]
[Date "2020.06.02"]
[Round "7"]
[White "gui_borba"]
[Black "Gyapiking"]
[Result "0-1"]
[WhiteElo "2314"]
[BlackElo "2503"]
[TimeControl "180+1"]
[EndTime "11:17:15 PDT"]
[Termination "Gyapiking won by resignation"]

1. d4 {[%clk 0:03:00.9]} 1... d5 {[%clk 0:02:59]} 2. Bf4 {[%clk 0:03:01.2]} 2...
c5 {[%clk 0:02:57.1]} 3. e3 {[%clk 0:03:01.5]} 3... Nf6 {[%clk 0:02:56.3]} 4. c3
{[%clk 0:03:01.6]} 4... Nc6 {[%clk 0:02:56.1]} 5. Nd2 {[%clk 0:02:59.5]} 5...
Bf5 {[%clk 0:02:55.1]} 6. Qb3 {[%clk 0:02:59.2]} 6... Qc8 {[%clk 0:02:54.1]} 7.
Ngf3 {[%clk 0:02:56.3]} 7... c4 {[%clk 0:02:54.1]} 8. Qd1 {[%clk 0:02:54]} 8...
e6 {[%clk 0:02:53.9]} 9. Be2 {[%clk 0:02:54]} 9... h6 {[%clk 0:02:53.8]} 10. O-O
{[%clk 0:02:52.8]} 10... Be7 {[%clk 0:02:53.9]} 11. h3 {[%clk 0:02:53.1]} 11...
O-O {[%clk 0:02:53.8]} 12. b3 {[%clk 0:02:53.6]} 12... b5 {[%clk 0:02:52.9]} 13.
a4 {[%clk 0:02:52.6]} 13... b4 {[%clk 0:02:51]} 14. Nb1 {[%clk 0:02:24.1]} 14...
bxc3 {[%clk 0:02:27.5]} 15. Nxc3 {[%clk 0:02:19.1]} 15... Nb4 {[%clk 0:02:25.4]}
16. bxc4 {[%clk 0:02:13.2]} 16... dxc4 {[%clk 0:02:25.2]} 17. Ne5 {[%clk
0:02:13.5]} 17... Nfd5 {[%clk 0:02:23.5]} 18. Qd2 {[%clk 0:02:00.4]} 18... Nxf4
{[%clk 0:02:21.1]} 19. exf4 {[%clk 0:01:59.6]} 19... Rd8 {[%clk 0:02:15.9]} 20.
Nxc4 {[%clk 0:01:50.8]} 20... Nc2 {[%clk 0:02:13.7]} 21. Rac1 {[%clk 0:01:46.7]}
21... Rxd4 {[%clk 0:02:08.9]} 22. Qxc2 {[%clk 0:01:21.3]} 22... Bxc2 {[%clk
0:02:07.8]} 23. Rxc2 {[%clk 0:01:22.2]} 23... Rxc4 {[%clk 0:02:08]} 24. Bxc4
{[%clk 0:01:21.8]} 24... Qxc4 {[%clk 0:02:07.9]} 25. Rfc1 {[%clk 0:01:22.7]}
25... Qxf4 {[%clk 0:02:06.8]} 26. Nb5 {[%clk 0:01:22.3]} 26... Bf6 {[%clk
0:02:02.3]} 27. Nc7 {[%clk 0:01:18.1]} 27... Rc8 {[%clk 0:01:59.7]} 28. g3
{[%clk 0:01:12.3]} 28... Qf5 {[%clk 0:01:57.9]} 29. h4 {[%clk 0:01:12.3]} 29...
Be5 {[%clk 0:01:55.1]} 0-1

[Event "*** SCC Grand Prix: Titled Tuesday Blitz"]
[Site "Chess.com"]
[Date "2020.06.02"]
[Round "7"]
[White "AndrewMaco"]
[Black "Micki-taryan"]
[Result "1/2-1/2"]
[WhiteElo "2655"]
[BlackElo "3034"]
[TimeControl "180+1"]
[EndTime "11:17:16 PDT"]
[Termination "Game drawn by agreement"]

1. e4 {[%clk 0:02:40.3]} 1... e5 {[%clk 0:03:00.4]} 2. Nf3 {[%clk 0:02:39.1]}
2... Nc6 {[%clk 0:03:01.3]} 3. Bb5 {[%clk 0:02:39.7]} 3... Nf6 {[%clk
0:03:01.1]} 4. O-O {[%clk 0:02:39.3]} 4... Nxe4 {[%clk 0:03:01.3]} 5. Re1 {[%clk
0:02:39.5]} 5... Nd6 {[%clk 0:03:00.9]} 6. Nxe5 {[%clk 0:02:40.1]} 6... Be7
{[%clk 0:03:01.4]} 7. Bf1 {[%clk 0:02:40.1]} 7... Nxe5 {[%clk 0:03:01.9]} 8.
Rxe5 {[%clk 0:02:41]} 8... O-O {[%clk 0:03:02.7]} 9. d4 {[%clk 0:02:41.4]} 9...
Bf6 {[%clk 0:03:01.5]} 10. Re1 {[%clk 0:02:41.5]} 10... Re8 {[%clk 0:02:59.5]}
11. c3 {[%clk 0:02:37.8]} 11... b6 {[%clk 0:02:57.5]} 12. Bf4 {[%clk 0:02:30.7]}
12... Rxe1 {[%clk 0:02:54.8]} 13. Qxe1 {[%clk 0:02:31.6]} 13... Ne8 {[%clk
0:02:55.3]} 14. d5 {[%clk 0:02:24.6]} 14... Bb7 {[%clk 0:02:53.5]} 15. Qd2
{[%clk 0:02:21.8]} 15... Be7 {[%clk 0:02:43.8]} 16. c4 {[%clk 0:02:20.6]} 16...
Bd6 {[%clk 0:02:37]} 17. Be3 {[%clk 0:02:10.1]} 17... Be5 {[%clk 0:02:30.8]} 18.
Nc3 {[%clk 0:02:08.8]} 18... Nf6 {[%clk 0:02:30.5]} 19. h3 {[%clk 0:02:05.2]}
19... c5 {[%clk 0:02:28]} 20. Bf4 {[%clk 0:01:53.3]} 20... Bxf4 {[%clk
0:02:19.5]} 21. Qxf4 {[%clk 0:01:54.2]} 21... d6 {[%clk 0:02:20.4]} 22. Re1
{[%clk 0:01:52]} 22... a6 {[%clk 0:02:18.6]} 23. g4 {[%clk 0:01:43.7]} 23... h6
{[%clk 0:02:18.6]} 24. h4 {[%clk 0:01:42.8]} 24... Qf8 {[%clk 0:02:17.8]} 25. g5
{[%clk 0:01:39.3]} 25... hxg5 {[%clk 0:02:18.7]} 26. hxg5 {[%clk 0:01:40.2]}
26... Nd7 {[%clk 0:02:19.6]} 27. Qg3 {[%clk 0:01:37.2]} 27... b5 {[%clk
0:02:02.5]} 28. cxb5 {[%clk 0:01:35.3]} 28... axb5 {[%clk 0:02:03.4]} 29. Bxb5
{[%clk 0:01:35.6]} 29... Nb6 {[%clk 0:02:02.5]} 30. Bc6 {[%clk 0:01:29.2]} 30...
Bxc6 {[%clk 0:02:02.5]} 31. dxc6 {[%clk 0:01:30.1]} 31... Rc8 {[%clk 0:02:03]}
1/2-1/2

[Event "*** SCC Grand Prix: Titled Tuesday Blitz"]
[Site "Chess.com"]
[Date "2020.06.02"]
[Round "7"]
[White "nitpicker"]
[Black "JSMastropiero"]
[Result "1-0"]
[WhiteElo "2243"]
[BlackElo "2426"]
[TimeControl "180+1"]
[EndTime "11:17:27 PDT"]
[Termination "nitpicker won by resignation"]

1. d4 {[%clk 0:03:00.9]} 1... Nf6 {[%clk 0:02:58.6]} 2. c4 {[%clk 0:03:00.2]}
2... c5 {[%clk 0:02:57.6]} 3. d5 {[%clk 0:02:59.3]} 3... b5 {[%clk 0:02:57.2]}
4. cxb5 {[%clk 0:02:59.1]} 4... a6 {[%clk 0:02:56.9]} 5. bxa6 {[%clk 0:02:59.6]}
5... g6 {[%clk 0:02:55.8]} 6. Nc3 {[%clk 0:02:57.9]} 6... Bxa6 {[%clk
0:02:54.9]} 7. e4 {[%clk 0:02:54.2]} 7... Bxf1 {[%clk 0:02:55.8]} 8. Kxf1 {[%clk
0:02:54]} 8... d6 {[%clk 0:02:55.9]} 9. Nf3 {[%clk 0:02:53.6]} 9... Bg7 {[%clk
0:02:56.2]} 10. g3 {[%clk 0:02:53.8]} 10... O-O {[%clk 0:02:55.6]} 11. Kg2
{[%clk 0:02:53.6]} 11... Qb6 {[%clk 0:02:56]} 12. a4 {[%clk 0:02:53]} 12... Na6
{[%clk 0:02:53.9]} 13. Qe2 {[%clk 0:02:46.1]} 13... Rfb8 {[%clk 0:02:52.7]} 14.
Nd2 {[%clk 0:02:28.3]} 14... Nc7 {[%clk 0:02:44]} 15. Nc4 {[%clk 0:02:15.2]}
15... Qa6 {[%clk 0:02:39.2]} 16. Ra2 {[%clk 0:01:42.6]} 16... Rb4 {[%clk
0:02:33.1]} 17. Nd2 {[%clk 0:01:28.7]} 17... Qxe2 {[%clk 0:02:30.5]} 18. Nxe2
{[%clk 0:01:27.9]} 18... Nxe4 {[%clk 0:02:28.4]} 19. Nxe4 {[%clk 0:01:22.7]}
19... Rxe4 {[%clk 0:02:28]} 20. Nc3 {[%clk 0:01:16.5]} 20... Bxc3 {[%clk
0:02:26.7]} 21. bxc3 {[%clk 0:01:15.4]} 21... Rexa4 {[%clk 0:02:26.2]} 22. Rd2
{[%clk 0:01:04.8]} 22... Ra2 {[%clk 0:02:18.5]} 23. Rxa2 {[%clk 0:00:58.7]}
23... Rxa2 {[%clk 0:02:17.4]} 24. Rd1 {[%clk 0:00:59.2]} 24... Rc2 {[%clk
0:02:15.4]} 25. Bh6 {[%clk 0:00:55.6]} 25... Rxc3 {[%clk 0:02:07]} 26. Rb1
{[%clk 0:00:54.6]} 26... f6 {[%clk 0:02:05]} 27. Rb8+ {[%clk 0:00:51.5]} 1-0

[Event "*** SCC Grand Prix: Titled Tuesday Blitz"]
[Site "Chess.com"]
[Date "2020.06.02"]
[Round "7"]
[White "AsaHoffmann"]
[Black "ajdemipopushi"]
[Result "0-1"]
[WhiteElo "2446"]
[BlackElo "2337"]
[TimeControl "180+1"]
[EndTime "11:17:31 PDT"]
[Termination "ajdemipopushi won by resignation"]

1. d4 {[%clk 0:02:58.1]} 1... Nf6 {[%clk 0:02:59.4]} 2. Bg5 {[%clk 0:02:57]}
2... c5 {[%clk 0:02:59.6]} 3. d5 {[%clk 0:02:56.2]} 3... Qb6 {[%clk 0:02:59.2]}
4. Nc3 {[%clk 0:02:55.6]} 4... g6 {[%clk 0:02:59.6]} 5. Qd2 {[%clk 0:02:51.7]}
5... Bg7 {[%clk 0:02:58.2]} 6. f3 {[%clk 0:02:45.3]} 6... Qxb2 {[%clk
0:02:46.9]} 7. Rb1 {[%clk 0:02:41.6]} 7... Nxd5 {[%clk 0:02:44.3]} 8. Rxb2
{[%clk 0:02:34.3]} 8... Bxc3 {[%clk 0:02:43.6]} 9. e4 {[%clk 0:02:32.1]} 9...
Bxd2+ {[%clk 0:02:40.3]} 10. Kxd2 {[%clk 0:02:31]} 10... Nc7 {[%clk 0:02:37.4]}
11. Bc4 {[%clk 0:02:16.1]} 11... Nc6 {[%clk 0:02:34.5]} 12. Ne2 {[%clk
0:02:14.9]} 12... f6 {[%clk 0:02:29.8]} 13. Be3 {[%clk 0:02:11.6]} 13... b6
{[%clk 0:02:26.8]} 14. h4 {[%clk 0:02:08.1]} 14... d6 {[%clk 0:02:21.9]} 15. h5
{[%clk 0:02:06.4]} 15... g5 {[%clk 0:02:20.5]} 16. c3 {[%clk 0:01:59.4]} 16...
Be6 {[%clk 0:02:18.9]} 17. Bd3 {[%clk 0:01:48.6]} 17... d5 {[%clk 0:02:06]} 18.
f4 {[%clk 0:01:44.3]} 18... h6 {[%clk 0:02:01.2]} 19. fxg5 {[%clk 0:01:38.7]}
19... hxg5 {[%clk 0:01:59.8]} 20. h6 {[%clk 0:01:37.9]} 20... O-O-O {[%clk
0:01:56.8]} 21. Ke1 {[%clk 0:01:33.5]} 21... Ne5 {[%clk 0:01:52]} 22. Bb1 {[%clk
0:01:29.8]} 22... Ng4 {[%clk 0:01:47.2]} 23. Bg1 {[%clk 0:01:19.4]} 23... Rxh6
{[%clk 0:01:44.4]} 24. Rh3 {[%clk 0:01:15.5]} 24... Rxh3 {[%clk 0:01:41.1]} 25.
gxh3 {[%clk 0:01:14.9]} 25... Ne5 {[%clk 0:01:41.2]} 26. Bh2 {[%clk 0:01:11.6]}
26... Nf3+ {[%clk 0:01:34.2]} 27. Kf2 {[%clk 0:01:10.7]} 27... Nxh2 {[%clk
0:01:34.1]} 0-1

[Event "*** SCC Grand Prix: Titled Tuesday Blitz"]
[Site "Chess.com"]
[Date "2020.06.02"]
[Round "7"]
[White "MalcolmPein"]
[Black "r31415"]
[Result "0-1"]
[WhiteElo "2217"]
[BlackElo "2431"]
[TimeControl "180+1"]
[EndTime "11:17:40 PDT"]
[Termination "r31415 won by resignation"]

1. d4 {[%clk 0:03:00.9]} 1... Nf6 {[%clk 0:02:59.5]} 2. c4 {[%clk 0:03:00.2]}
2... e6 {[%clk 0:03:00.1]} 3. Nc3 {[%clk 0:03:00]} 3... Bb4 {[%clk 0:03:00.4]}
4. e3 {[%clk 0:03:00.1]} 4... O-O {[%clk 0:03:00.5]} 5. Bd3 {[%clk 0:03:00.5]}
5... d5 {[%clk 0:02:59.6]} 6. Nf3 {[%clk 0:02:59.2]} 6... b6 {[%clk 0:02:58.7]}
7. O-O {[%clk 0:02:57.1]} 7... Bb7 {[%clk 0:02:59.2]} 8. cxd5 {[%clk 0:02:57.3]}
8... exd5 {[%clk 0:02:58.6]} 9. Ne5 {[%clk 0:02:57.4]} 9... Nbd7 {[%clk
0:02:57.8]} 10. f4 {[%clk 0:02:57.9]} 10... Ne4 {[%clk 0:02:56.2]} 11. Qf3
{[%clk 0:02:32.3]} 11... Nxc3 {[%clk 0:02:47.5]} 12. bxc3 {[%clk 0:02:32.2]}
12... Bxc3 {[%clk 0:02:47.4]} 13. Rb1 {[%clk 0:02:32.8]} 13... Nf6 {[%clk
0:02:43.9]} 14. Ba3 {[%clk 0:02:21.4]} 14... Re8 {[%clk 0:02:43.5]} 15. Rbc1
{[%clk 0:02:15.9]} 15... Ne4 {[%clk 0:02:39.4]} 16. Bxe4 {[%clk 0:02:10.3]}
16... dxe4 {[%clk 0:02:39]} 17. Qh5 {[%clk 0:02:06.8]} 17... g6 {[%clk
0:02:38.5]} 18. Qh6 {[%clk 0:01:32.1]} 18... Bd2 {[%clk 0:02:34.2]} 19. Nxf7
{[%clk 0:01:32]} 19... Qd7 {[%clk 0:02:04.5]} 20. Ne5 {[%clk 0:01:06.1]} 20...
Bxe3+ {[%clk 0:02:04.2]} 21. Kh1 {[%clk 0:01:05.2]} 21... Rxe5 {[%clk
0:01:49.1]} 22. fxe5 {[%clk 0:00:53.1]} 22... c5 {[%clk 0:01:45.3]} 23. Rce1
{[%clk 0:00:48.3]} 23... Bxh6 {[%clk 0:01:44.2]} 0-1

[Event "*** SCC Grand Prix: Titled Tuesday Blitz"]
[Site "Chess.com"]
[Date "2020.06.02"]
[Round "7"]
[White "Haykoooo0o"]
[Black "goofypenguin96"]
[Result "1/2-1/2"]
[WhiteElo "2562"]
[BlackElo "2277"]
[TimeControl "180+1"]
[EndTime "11:17:41 PDT"]
[Termination "Game drawn by repetition"]

1. d4 {[%clk 0:03:00.9]} 1... d5 {[%clk 0:02:59.2]} 2. Nf3 {[%clk 0:03:00.4]}
2... Nf6 {[%clk 0:02:58.5]} 3. g3 {[%clk 0:03:00.6]} 3... g6 {[%clk 0:02:57.8]}
4. Bg2 {[%clk 0:02:58.6]} 4... Bg7 {[%clk 0:02:58.1]} 5. O-O {[%clk 0:02:55.5]}
5... O-O {[%clk 0:02:58.1]} 6. c4 {[%clk 0:02:51.3]} 6... c6 {[%clk 0:02:58.3]}
7. cxd5 {[%clk 0:02:46.6]} 7... cxd5 {[%clk 0:02:59.2]} 8. Nc3 {[%clk 0:02:47]}
8... Nc6 {[%clk 0:02:58.7]} 9. Bf4 {[%clk 0:02:44.8]} 9... Bf5 {[%clk 0:02:57]}
10. Rc1 {[%clk 0:02:44.1]} 10... Rc8 {[%clk 0:02:55.3]} 11. Qa4 {[%clk
0:02:43.4]} 11... a6 {[%clk 0:02:49.1]} 12. Rfd1 {[%clk 0:02:42]} 12... Nh5
{[%clk 0:02:38.4]} 13. Be3 {[%clk 0:02:39.9]} 13... Nf6 {[%clk 0:02:36.4]} 14.
Ne5 {[%clk 0:02:37]} 14... Ne4 {[%clk 0:02:26.6]} 15. Nxe4 {[%clk 0:02:34]}
15... Bxe4 {[%clk 0:02:26.3]} 16. Nxc6 {[%clk 0:02:33.8]} 16... Rxc6 {[%clk
0:02:17.7]} 17. Rxc6 {[%clk 0:02:33.1]} 17... bxc6 {[%clk 0:02:12.1]} 18. Bxe4
{[%clk 0:02:27.2]} 18... dxe4 {[%clk 0:02:13]} 19. Qxc6 {[%clk 0:02:27]} 19...
Qa5 {[%clk 0:02:11.3]} 20. a3 {[%clk 0:02:21.5]} 20... f5 {[%clk 0:01:32.6]} 21.
Rc1 {[%clk 0:02:13.9]} 21... Rd8 {[%clk 0:01:25.2]} 22. Rc5 {[%clk 0:02:06.3]}
22... Qe1+ {[%clk 0:01:20.3]} 23. Kg2 {[%clk 0:02:04.5]} 23... Qxe2 {[%clk
0:01:20.3]} 24. Qe6+ {[%clk 0:02:04.6]} 24... Kh8 {[%clk 0:01:17.9]} 25. Qxe7
{[%clk 0:01:40.3]} 25... Qf3+ {[%clk 0:01:15.7]} 26. Kh3 {[%clk 0:01:40.8]}
26... Qg4+ {[%clk 0:01:06.4]} 27. Kg2 {[%clk 0:01:40.8]} 27... Qf3+ {[%clk
0:01:06.3]} 28. Kg1 {[%clk 0:01:34.1]} 28... Qd1+ {[%clk 0:01:06]} 29. Kg2
{[%clk 0:01:34.3]} 29... Qf3+ {[%clk 0:01:05.8]} 1/2-1/2

[Event "*** SCC Grand Prix: Titled Tuesday Blitz"]
[Site "Chess.com"]
[Date "2020.06.02"]
[Round "7"]
[White "CarlssonLudvig"]
[Black "davigator"]
[Result "1-0"]
[WhiteElo "2494"]
[BlackElo "2314"]
[TimeControl "180+1"]
[EndTime "11:17:42 PDT"]
[Termination "CarlssonLudvig won by checkmate"]

1. d4 {[%clk 0:03:00.9]} 1... Nf6 {[%clk 0:02:56.5]} 2. c4 {[%clk 0:03:00.7]}
2... e6 {[%clk 0:02:56]} 3. g3 {[%clk 0:03:00.7]} 3... Bb4+ {[%clk 0:02:56.2]}
4. Bd2 {[%clk 0:03:00.7]} 4... a5 {[%clk 0:02:55.5]} 5. Bg2 {[%clk 0:03:00.5]}
5... d5 {[%clk 0:02:54.8]} 6. Qc2 {[%clk 0:02:56.9]} 6... c6 {[%clk 0:02:52.9]}
7. Nf3 {[%clk 0:02:56.8]} 7... O-O {[%clk 0:02:51.9]} 8. O-O {[%clk 0:02:57.4]}
8... b6 {[%clk 0:02:51]} 9. Bf4 {[%clk 0:02:50.9]} 9... Be7 {[%clk 0:02:49.4]}
10. Nbd2 {[%clk 0:02:47.5]} 10... Ba6 {[%clk 0:02:47.1]} 11. Rac1 {[%clk
0:02:43.7]} 11... Ra7 {[%clk 0:02:39.6]} 12. cxd5 {[%clk 0:02:36.3]} 12... cxd5
{[%clk 0:02:38.7]} 13. Bc7 {[%clk 0:02:34]} 13... Qd7 {[%clk 0:02:28.6]} 14.
Bxb6 {[%clk 0:02:33.3]} 14... Rb7 {[%clk 0:02:27.9]} 15. Bxa5 {[%clk 0:02:24.5]}
15... Bxe2 {[%clk 0:02:26.9]} 16. Rfe1 {[%clk 0:02:23.9]} 16... Ba6 {[%clk
0:02:23.2]} 17. a4 {[%clk 0:02:22]} 17... Bd6 {[%clk 0:02:20.6]} 18. Ne5 {[%clk
0:02:20.6]} 18... Bxe5 {[%clk 0:02:20.4]} 19. dxe5 {[%clk 0:02:20.7]} 19... Ng4
{[%clk 0:02:16.9]} 20. h3 {[%clk 0:02:17.6]} 20... Nh6 {[%clk 0:02:16.2]} 21.
Nf3 {[%clk 0:02:16.2]} 21... Bc4 {[%clk 0:02:11.1]} 22. Nd4 {[%clk 0:02:14.6]}
22... Ra7 {[%clk 0:02:01.1]} 23. Bb4 {[%clk 0:02:10.6]} 23... Re8 {[%clk
0:01:58.9]} 24. b3 {[%clk 0:02:10.8]} 24... Ba6 {[%clk 0:01:57.7]} 25. Bd2
{[%clk 0:02:09.7]} 25... Nf5 {[%clk 0:01:53.3]} 26. Nxf5 {[%clk 0:02:08.2]}
26... exf5 {[%clk 0:01:53.7]} 27. Be3 {[%clk 0:02:07.3]} 27... Rb7 {[%clk
0:01:53.3]} 28. f4 {[%clk 0:02:04.5]} 28... Rd8 {[%clk 0:01:47.6]} 29. Red1
{[%clk 0:02:03.1]} 29... Qe6 {[%clk 0:01:44.7]} 30. Bxd5 {[%clk 0:01:58.7]}
30... Qg6 {[%clk 0:00:54.8]} 31. Bxb7 {[%clk 0:01:49.3]} 31... Bxb7 {[%clk
0:00:54.1]} 32. Rxd8# {[%clk 0:01:48.7]} 1-0

[Event "*** SCC Grand Prix: Titled Tuesday Blitz"]
[Site "Chess.com"]
[Date "2020.06.02"]
[Round "7"]
[White "Reality-Stone"]
[Black "WelshTiger"]
[Result "1-0"]
[WhiteElo "2494"]
[BlackElo "2364"]
[TimeControl "180+1"]
[EndTime "11:17:47 PDT"]
[Termination "Reality-Stone won by checkmate"]

1. d4 {[%clk 0:03:00.9]} 1... Nf6 {[%clk 0:02:59]} 2. c4 {[%clk 0:03:00.8]} 2...
c5 {[%clk 0:02:58.9]} 3. d5 {[%clk 0:03:00.4]} 3... e6 {[%clk 0:02:59.4]} 4. Nc3
{[%clk 0:02:59.8]} 4... exd5 {[%clk 0:02:59.7]} 5. cxd5 {[%clk 0:03:00.7]} 5...
d6 {[%clk 0:03:00.3]} 6. Nf3 {[%clk 0:03:00.8]} 6... g6 {[%clk 0:02:59.5]} 7.
Nd2 {[%clk 0:03:01]} 7... Bg7 {[%clk 0:02:35.6]} 8. e4 {[%clk 0:02:59.3]} 8...
O-O {[%clk 0:02:32.8]} 9. Be2 {[%clk 0:02:56.9]} 9... Ne8 {[%clk 0:02:29.5]} 10.
O-O {[%clk 0:02:54.3]} 10... f5 {[%clk 0:02:29.5]} 11. f4 {[%clk 0:02:40.6]}
11... Nc7 {[%clk 0:02:15.8]} 12. Bf3 {[%clk 0:02:36.7]} 12... b5 {[%clk
0:02:10]} 13. a4 {[%clk 0:02:30.6]} 13... b4 {[%clk 0:02:09.4]} 14. Ncb1 {[%clk
0:02:30]} 14... a5 {[%clk 0:02:06.9]} 15. Nc4 {[%clk 0:02:25.4]} 15... fxe4
{[%clk 0:02:04.9]} 16. Bxe4 {[%clk 0:02:26.3]} 16... Ba6 {[%clk 0:02:04.5]} 17.
Nbd2 {[%clk 0:02:25.3]} 17... Ne8 {[%clk 0:01:57.6]} 18. Kh1 {[%clk 0:02:19.9]}
18... Nd7 {[%clk 0:01:57.3]} 19. Ra2 {[%clk 0:02:11.8]} 19... Nb6 {[%clk
0:01:56.1]} 20. b3 {[%clk 0:02:11]} 20... Nxc4 {[%clk 0:01:55.5]} 21. Nxc4
{[%clk 0:02:10.3]} 21... Bxc4 {[%clk 0:01:55.4]} 22. bxc4 {[%clk 0:02:11.2]}
22... Bd4 {[%clk 0:01:48.2]} 23. f5 {[%clk 0:02:09.2]} 23... gxf5 {[%clk
0:01:45.2]} 24. Bxf5 {[%clk 0:02:06.4]} 24... Ng7 {[%clk 0:01:44.9]} 25. g4
{[%clk 0:02:00.6]} 25... Qh4 {[%clk 0:01:41]} 26. Rg2 {[%clk 0:01:56.2]} 26...
Rae8 {[%clk 0:01:40.6]} 27. Bf4 {[%clk 0:01:52]} 27... Be5 {[%clk 0:01:36.1]}
28. Bxe5 {[%clk 0:01:49.5]} 28... Rxe5 {[%clk 0:01:36.1]} 29. Rg3 {[%clk
0:01:43.9]} 29... Qg5 {[%clk 0:01:29.9]} 30. Kg2 {[%clk 0:01:42.3]} 30... Rfe8
{[%clk 0:01:28.5]} 31. Qd3 {[%clk 0:01:36.8]} 31... h6 {[%clk 0:01:27.9]} 32.
Rf2 {[%clk 0:01:28.9]} 32... Re3 {[%clk 0:01:26.7]} 33. Rxe3 {[%clk 0:01:26.4]}
33... Rxe3 {[%clk 0:01:26.5]} 34. Bh7+ {[%clk 0:01:26.2]} 34... Kh8 {[%clk
0:01:21.2]} 35. Rf8# {[%clk 0:01:27.1]} 1-0